[Event "Live Chess"]
[Site "Chess.com"]
[Date "2023.05.21"]
[Round "-"]
[White "LiamClery2020"]
[Black "AttackingSnowLeopard"]
[Result "1-0"]
[WhiteElo "2006"]
[BlackElo "2156"]
[TimeControl "300"]
[EndTime "3:45:14 PDT"]
[Termination "LiamClery2020 won by resignation"]

1. e4 {[%clk 0:04:59.2]} 1... e5 {[%clk 0:04:58.1]} 2. Nc3 {[%clk 0:04:57.2]}
2... Nf6 {[%clk 0:04:56.3]} 3. f4 {[%clk 0:04:54.6]} 3... d5 {[%clk 0:04:55.2]}
4. fxe5 {[%clk 0:04:53.5]} 4... Nxe4 {[%clk 0:04:54.5]} 5. Qf3 {[%clk
0:04:52.6]} 5... Nxc3 {[%clk 0:04:53.9]} 6. bxc3 {[%clk 0:04:52.5]} 6... Be6
{[%clk 0:04:52.9]} 7. d4 {[%clk 0:04:51.4]} 7... c5 {[%clk 0:04:51.9]} 8. Bb5+
{[%clk 0:04:49.5]} 8... Nc6 {[%clk 0:04:50.6]} 9. Qg3 {[%clk 0:04:48.9]} 9...
Qa5 {[%clk 0:04:43.7]} 10. Bxc6+ {[%clk 0:04:47.3]} 10... bxc6 {[%clk
0:04:42.8]} 11. Ne2 {[%clk 0:04:46.7]} 11... cxd4 {[%clk 0:04:41.4]} 12. Nxd4
{[%clk 0:04:46]} 12... Qc7 {[%clk 0:04:36.3]} 13. O-O {[%clk 0:04:44.5]} 13...
Qd7 {[%clk 0:04:33.5]} 14. Be3 {[%clk 0:04:38]} 14... c5 {[%clk 0:04:30.5]} 15.
Nxe6 {[%clk 0:04:35.6]} 15... Qxe6 {[%clk 0:04:29.3]} 16. Rab1 {[%clk
0:04:32.6]} 16... g6 {[%clk 0:04:22.4]} 17. Rb7 {[%clk 0:04:30.6]} 17... Be7
{[%clk 0:04:13.6]} 18. Bg5 {[%clk 0:04:22.2]} 18... Bxg5 {[%clk 0:04:06.9]} 19.
Qxg5 {[%clk 0:04:22.1]} 19... O-O {[%clk 0:04:05.2]} 20. Rf6 {[%clk 0:04:12.8]}
20... Qc8 {[%clk 0:04:03.6]} 21. Re7 {[%clk 0:04:06.2]} 21... Rb8 {[%clk
0:03:55.4]} 22. e6 {[%clk 0:04:03.3]} 22... fxe6 {[%clk 0:03:44.6]} 23. Rxg6+
{[%clk 0:03:59.2]} 23... Kh8 {[%clk 0:03:39.4]} 24. Qe5+ {[%clk 0:03:58.4]} 1-0

[Event "Live Chess"]
[Site "Chess.com"]
[Date "2023.05.21"]
[Round "-"]
[White "lateforthesky"]
[Black "domrobson"]
[Result "1-0"]
[WhiteElo "2121"]
[BlackElo "1714"]
[TimeControl "300"]
[EndTime "3:45:45 PDT"]
[Termination "lateforthesky won by resignation"]

1. e4 {[%clk 0:04:58.2]} 1... e5 {[%clk 0:04:59.6]} 2. Nf3 {[%clk 0:04:56.7]}
2... Nf6 {[%clk 0:04:59]} 3. d4 {[%clk 0:04:50.1]} 3... Nxe4 {[%clk 0:04:56.2]}
4. dxe5 {[%clk 0:04:40]} 4... d5 {[%clk 0:04:53.3]} 5. Bd3 {[%clk 0:04:38.4]}
5... Nc6 {[%clk 0:04:51.3]} 6. Nbd2 {[%clk 0:04:33.9]} 6... Bg4 {[%clk
0:04:49.7]} 7. h3 {[%clk 0:04:31.9]} 7... Bxf3 {[%clk 0:04:47.2]} 8. Nxf3 {[%clk
0:04:29.9]} 8... Qe7 {[%clk 0:04:41.9]} 9. O-O {[%clk 0:04:25.2]} 9... O-O-O
{[%clk 0:04:41.1]} 10. Re1 {[%clk 0:04:23.1]} 10... Nxe5 {[%clk 0:04:38.1]} 11.
Nxe5 {[%clk 0:04:20.3]} 11... Qxe5 {[%clk 0:04:36.3]} 12. Qe2 {[%clk 0:04:05.7]}
12... Bc5 {[%clk 0:04:30.4]} 13. Be3 {[%clk 0:03:40]} 13... Bxe3 {[%clk
0:04:26.3]} 14. Qxe3 {[%clk 0:03:37.6]} 14... Qxb2 {[%clk 0:04:11.9]} 15. Qxa7
{[%clk 0:03:32.9]} 15... Qb6 {[%clk 0:04:07.7]} 16. Qa8+ {[%clk 0:03:26.1]}
16... Kd7 {[%clk 0:04:06.3]} 17. Qa4+ {[%clk 0:03:16.4]} 17... Qc6 {[%clk
0:04:04.9]} 18. Qd4 {[%clk 0:03:13.4]} 18... Qf6 {[%clk 0:03:59.9]} 19. Qa4+
{[%clk 0:03:06.3]} 19... Qc6 {[%clk 0:03:55.8]} 20. Qb4 {[%clk 0:03:01.1]} 20...
f5 {[%clk 0:03:49.1]} 21. Bb5 {[%clk 0:02:59.7]} 1-0

[Event "Live Chess"]
[Site "Chess.com"]
[Date "2023.05.21"]
[Round "-"]
[White "Abde2012"]
[Black "Woodpusher500"]
[Result "1-0"]
[WhiteElo "752"]
[BlackElo "1031"]
[TimeControl "300"]
[EndTime "3:46:14 PDT"]
[Termination "Abde2012 won by resignation"]

1. d4 {[%clk 0:04:56.3]} 1... c5 {[%clk 0:04:57.8]} 2. dxc5 {[%clk 0:04:54.6]}
2... e6 {[%clk 0:04:55.6]} 3. b4 {[%clk 0:04:50.1]} 3... a5 {[%clk 0:04:51.4]}
4. bxa5 {[%clk 0:04:46.3]} 4... Qxa5+ {[%clk 0:04:42.4]} 5. Bd2 {[%clk
0:04:45.7]} 5... Qxc5 {[%clk 0:04:37.9]} 6. e3 {[%clk 0:04:42.5]} 6... g6 {[%clk
0:04:28]} 7. Bc3 {[%clk 0:04:39]} 7... f6 {[%clk 0:04:14.7]} 8. Qd2 {[%clk
0:04:28.5]} 8... Nc6 {[%clk 0:04:00.9]} 9. Bd3 {[%clk 0:04:19.3]} 9... Bg7
{[%clk 0:03:51.1]} 10. Bd4 {[%clk 0:04:14.5]} 10... Qg5 {[%clk 0:03:38.6]} 11.
g3 {[%clk 0:04:07.5]} 11... Nge7 {[%clk 0:03:29.5]} 12. Bc3 {[%clk 0:03:52.9]}
12... O-O {[%clk 0:03:24.9]} 13. f4 {[%clk 0:03:48.1]} 13... Qg4 {[%clk
0:03:12.8]} 14. Be2 {[%clk 0:03:45.9]} 14... Qf5 {[%clk 0:02:49.9]} 15. h3
{[%clk 0:03:41.9]} 15... Qd5 {[%clk 0:02:41.9]} 16. Bf3 {[%clk 0:03:38.9]} 16...
Qxd2+ {[%clk 0:02:38.5]} 17. Bxd2 {[%clk 0:03:36.8]} 17... f5 {[%clk 0:02:34.7]}
18. Bc3 {[%clk 0:03:27.3]} 18... Ra3 {[%clk 0:02:26.4]} 19. Bxg7 {[%clk
0:03:22.2]} 19... Kxg7 {[%clk 0:02:24.3]} 20. Nxa3 {[%clk 0:03:14.5]} 20... b6
{[%clk 0:02:14.4]} 21. Nb5 {[%clk 0:03:12.3]} 21... Bb7 {[%clk 0:02:09.6]} 22.
Nd6 {[%clk 0:03:10.8]} 22... Ra8 {[%clk 0:02:01.2]} 23. Nxb7 {[%clk 0:03:08.3]}
23... Ra3 {[%clk 0:01:58.5]} 24. Kf2 {[%clk 0:02:59.5]} 24... Nd4 {[%clk
0:01:51.5]} 25. exd4 {[%clk 0:02:56.4]} 25... Rc3 {[%clk 0:01:47]} 26. Rc1
{[%clk 0:02:50.9]} 26... Rc7 {[%clk 0:01:33.2]} 27. Nd8 {[%clk 0:02:47.1]} 27...
Rc8 {[%clk 0:01:31.5]} 28. Nb7 {[%clk 0:02:45]} 28... Rc7 {[%clk 0:01:27.3]} 29.
Nd6 {[%clk 0:02:41.9]} 29... Rc6 {[%clk 0:01:20.4]} 30. Bxc6 {[%clk 0:02:39]}
30... dxc6 {[%clk 0:01:19.2]} 31. Ne8+ {[%clk 0:02:37.5]} 31... Kf7 {[%clk
0:01:16.3]} 32. Nc7 {[%clk 0:02:33.4]} 32... Nd5 {[%clk 0:01:13.7]} 33. Nxd5
{[%clk 0:02:31.3]} 33... exd5 {[%clk 0:01:11.3]} 34. c3 {[%clk 0:02:28.8]} 34...
Kf6 {[%clk 0:01:04.6]} 35. c4 {[%clk 0:02:21.6]} 1-0

[Event "Live Chess"]
[Site "Chess.com"]
[Date "2023.05.21"]
[Round "-"]
[White "enoughtell"]
[Black "KeithArkell"]
[Result "0-1"]
[WhiteElo "1107"]
[BlackElo "2500"]
[TimeControl "300"]
[EndTime "3:46:15 PDT"]
[Termination "KeithArkell won by checkmate"]

1. e4 {[%clk 0:04:58.1]} 1... c6 {[%clk 0:04:59.4]} 2. Nf3 {[%clk 0:04:57]} 2...
d5 {[%clk 0:04:58.7]} 3. exd5 {[%clk 0:04:55.4]} 3... cxd5 {[%clk 0:04:57.9]} 4.
d4 {[%clk 0:04:54.4]} 4... Nf6 {[%clk 0:04:57.2]} 5. c3 {[%clk 0:04:53.3]} 5...
Nc6 {[%clk 0:04:56.5]} 6. Bg5 {[%clk 0:04:48.3]} 6... Ne4 {[%clk 0:04:54.7]} 7.
Bd3 {[%clk 0:04:39]} 7... Bg4 {[%clk 0:04:53.3]} 8. Nbd2 {[%clk 0:04:32.3]} 8...
Nxg5 {[%clk 0:04:51.4]} 9. h3 {[%clk 0:04:25.7]} 9... Nxf3+ {[%clk 0:04:50]} 10.
Nxf3 {[%clk 0:04:24.3]} 10... Bxf3 {[%clk 0:04:49.4]} 11. Qxf3 {[%clk 0:04:23]}
11... g6 {[%clk 0:04:48.7]} 12. O-O {[%clk 0:04:21.8]} 12... Bg7 {[%clk
0:04:48]} 13. Rae1 {[%clk 0:04:15.5]} 13... O-O {[%clk 0:04:46.9]} 14. Qg3
{[%clk 0:04:09.6]} 14... e6 {[%clk 0:04:45.8]} 15. f4 {[%clk 0:04:08.1]} 15...
Ne7 {[%clk 0:04:43.5]} 16. Re3 {[%clk 0:03:57]} 16... b5 {[%clk 0:04:41.6]} 17.
Qg4 {[%clk 0:03:50.3]} 17... b4 {[%clk 0:04:40.1]} 18. Rg3 {[%clk 0:03:46.6]}
18... bxc3 {[%clk 0:04:38.9]} 19. bxc3 {[%clk 0:03:45]} 19... Rc8 {[%clk
0:04:38]} 20. f5 {[%clk 0:03:39.1]} 20... Nxf5 {[%clk 0:04:36.2]} 21. Bxf5
{[%clk 0:03:34.5]} 21... exf5 {[%clk 0:04:35.4]} 22. Rxf5 {[%clk 0:03:31.5]}
22... Rxc3 {[%clk 0:04:23.1]} 23. Rg5 {[%clk 0:03:11.5]} 23... Rxg3 {[%clk
0:04:19.3]} 24. Qxg3 {[%clk 0:03:10.4]} 24... Bxd4+ {[%clk 0:04:18.5]} 25. Kh1
{[%clk 0:03:08.8]} 25... Qf6 {[%clk 0:04:15.1]} 26. h4 {[%clk 0:02:57.7]} 26...
Rc8 {[%clk 0:04:09]} 27. h5 {[%clk 0:02:54.4]} 27... Rc1+ {[%clk 0:04:06.7]} 28.
Kh2 {[%clk 0:02:53]} 28... Bg1+ {[%clk 0:04:04.4]} 29. Kh3 {[%clk 0:02:51.4]}
29... Rc3 {[%clk 0:04:01.9]} 30. Rf5 {[%clk 0:02:39.8]} 30... Rxg3+ {[%clk
0:03:59.9]} 31. Kxg3 {[%clk 0:02:39.1]} 31... Qxf5 {[%clk 0:03:59.2]} 32. hxg6
{[%clk 0:02:36.9]} 32... Bf2+ {[%clk 0:03:58.2]} 33. Kh2 {[%clk 0:02:35.7]}
33... Qh5# {[%clk 0:03:57.5]} 0-1

[Event "Live Chess"]
[Site "Chess.com"]
[Date "2023.05.21"]
[Round "-"]
[White "TheSmoulderingMaster"]
[Black "EdenHazard8"]
[Result "0-1"]
[WhiteElo "1668"]
[BlackElo "1950"]
[TimeControl "300"]
[EndTime "3:46:18 PDT"]
[Termination "EdenHazard8 won by resignation"]

1. e4 {[%clk 0:04:58.4]} 1... c6 {[%clk 0:04:59.8]} 2. d4 {[%clk 0:04:56.7]}
2... d5 {[%clk 0:04:59.7]} 3. Nc3 {[%clk 0:04:55.4]} 3... dxe4 {[%clk
0:04:56.7]} 4. Nxe4 {[%clk 0:04:53.4]} 4... Nf6 {[%clk 0:04:52.4]} 5. Nxf6+
{[%clk 0:04:51.3]} 5... exf6 {[%clk 0:04:51.5]} 6. Nf3 {[%clk 0:04:50.8]} 6...
Bd6 {[%clk 0:04:51.4]} 7. Bc4 {[%clk 0:04:48.6]} 7... O-O {[%clk 0:04:51.3]} 8.
O-O {[%clk 0:04:43.4]} 8... Re8 {[%clk 0:04:51.2]} 9. Nh4 {[%clk 0:04:39.9]}
9... Nd7 {[%clk 0:04:49.8]} 10. Qh5 {[%clk 0:04:37.7]} 10... Qe7 {[%clk
0:04:45.6]} 11. Bd2 {[%clk 0:04:30.4]} 11... Nf8 {[%clk 0:04:43.6]} 12. Rfe1
{[%clk 0:04:27.5]} 12... Be6 {[%clk 0:04:42.8]} 13. Nf5 {[%clk 0:04:23.6]} 13...
Qc7 {[%clk 0:04:40.6]} 14. Bxe6 {[%clk 0:04:09.1]} 14... Nxe6 {[%clk 0:04:37.6]}
15. Qg4 {[%clk 0:04:05.4]} 15... Bxh2+ {[%clk 0:04:34]} 16. Kh1 {[%clk
0:04:04.4]} 16... g6 {[%clk 0:04:31.6]} 17. Nh6+ {[%clk 0:03:58.9]} 17... Kh8
{[%clk 0:04:29.6]} 18. Qh4 {[%clk 0:03:49]} 18... f5 {[%clk 0:04:28.2]} 19. Qf6+
{[%clk 0:03:44.8]} 19... Ng7 {[%clk 0:04:24.9]} 20. Nxf7+ {[%clk 0:03:42.7]}
20... Kg8 {[%clk 0:04:23.9]} 21. Nh6+ {[%clk 0:03:37.4]} 21... Kh8 {[%clk
0:04:22.8]} 22. Bc3 {[%clk 0:03:30.5]} 22... Rf8 {[%clk 0:04:16.3]} 23. Qh4
{[%clk 0:03:23.7]} 23... Bf4 {[%clk 0:03:43.1]} 24. Re7 {[%clk 0:03:21.8]} 24...
g5 {[%clk 0:03:33.6]} 25. Rxc7 {[%clk 0:03:06.9]} 25... gxh4 {[%clk 0:03:31.9]}
26. d5 {[%clk 0:03:05.3]} 26... Bxc7 {[%clk 0:03:29.3]} 27. dxc6 {[%clk
0:02:57.9]} 27... bxc6 {[%clk 0:03:27.7]} 28. Rd1 {[%clk 0:02:51.6]} 28... Rad8
{[%clk 0:03:25.5]} 29. Rxd8 {[%clk 0:02:49.1]} 29... Bxd8 {[%clk 0:03:23.1]} 0-1

[Event "Live Chess"]
[Site "Chess.com"]
[Date "2023.05.21"]
[Round "-"]
[White "sup3rm0nk3y"]
[Black "gmnorfolk"]
[Result "0-1"]
[WhiteElo "1319"]
[BlackElo "2104"]
[TimeControl "300"]
[EndTime "3:46:19 PDT"]
[Termination "gmnorfolk won by resignation"]

1. b3 {[%clk 0:04:57.1]} 1... e5 {[%clk 0:04:58.6]} 2. Bb2 {[%clk 0:04:56.4]}
2... Nc6 {[%clk 0:04:57]} 3. e3 {[%clk 0:04:54.5]} 3... Nf6 {[%clk 0:04:56.4]}
4. f4 {[%clk 0:04:45.9]} 4... exf4 {[%clk 0:04:50]} 5. exf4 {[%clk 0:04:44.9]}
5... d5 {[%clk 0:04:47.8]} 6. Nf3 {[%clk 0:04:41.4]} 6... Bd6 {[%clk 0:04:46.1]}
7. g3 {[%clk 0:04:38.4]} 7... O-O {[%clk 0:04:44.7]} 8. d3 {[%clk 0:04:33.7]}
8... Re8+ {[%clk 0:04:44.2]} 9. Be2 {[%clk 0:04:32.3]} 9... Bh3 {[%clk
0:04:39.2]} 10. Nc3 {[%clk 0:04:21.7]} 10... Bg2 {[%clk 0:04:36.4]} 11. Rf1
{[%clk 0:04:02.3]} 11... Bxf1 {[%clk 0:04:32.7]} 12. Kxf1 {[%clk 0:04:02.2]}
12... Ng4 {[%clk 0:04:28.2]} 13. Kg1 {[%clk 0:03:46.4]} 13... Ne3 {[%clk
0:04:26]} 14. Qd2 {[%clk 0:03:44.9]} 14... d4 {[%clk 0:04:25.1]} 15. Ne4 {[%clk
0:03:40.5]} 15... f5 {[%clk 0:04:15.2]} 16. Neg5 {[%clk 0:03:33.1]} 16... h6
{[%clk 0:04:12.3]} 17. Nh3 {[%clk 0:03:31.8]} 17... Bb4 {[%clk 0:04:07.7]} 18.
c3 {[%clk 0:03:28.6]} 18... dxc3 {[%clk 0:04:06.1]} 19. Bxc3 {[%clk 0:03:27.4]}
19... Bxc3 {[%clk 0:04:04.3]} 20. Qxc3 {[%clk 0:03:26.3]} 20... Nd5 {[%clk
0:03:59.1]} 21. Qb2 {[%clk 0:03:22.6]} 21... Qf6 {[%clk 0:03:55.3]} 22. Qxf6
{[%clk 0:03:15.7]} 22... gxf6 {[%clk 0:03:53.8]} 23. Re1 {[%clk 0:03:10.1]}
23... Re3 {[%clk 0:03:41.9]} 24. Nd2 {[%clk 0:03:05.8]} 24... Rae8 {[%clk
0:03:36.5]} 25. Kf2 {[%clk 0:03:03.1]} 25... Nd4 {[%clk 0:03:35.6]} 26. Ng1
{[%clk 0:03:01.2]} 26... Nc3 {[%clk 0:03:32.4]} 27. Nc4 {[%clk 0:02:53.7]} 27...
Rxe2+ {[%clk 0:03:19.8]} 28. Nxe2 {[%clk 0:02:51.7]} 28... Rxe2+ {[%clk
0:03:13.5]} 29. Rxe2 {[%clk 0:02:49.1]} 29... Ndxe2 {[%clk 0:03:13]} 30. a4
{[%clk 0:02:45.8]} 30... Nd4 {[%clk 0:03:11.2]} 31. Nd2 {[%clk 0:02:41.7]} 31...
c5 {[%clk 0:03:06.6]} 32. Ke1 {[%clk 0:02:33.3]} 32... b6 {[%clk 0:03:02.4]} 33.
Kf2 {[%clk 0:02:27.8]} 33... Kf7 {[%clk 0:03:01.5]} 34. h3 {[%clk 0:02:27.1]}
34... h5 {[%clk 0:02:59.2]} 35. Ke3 {[%clk 0:02:24.2]} 35... Ke6 {[%clk
0:02:55]} 36. b4 {[%clk 0:02:23]} 36... Nd5+ {[%clk 0:02:52.4]} 37. Kf2 {[%clk
0:02:17.8]} 37... cxb4 {[%clk 0:02:51.4]} 38. Nc4 {[%clk 0:02:14]} 38... b3
{[%clk 0:02:49.1]} 39. g4 {[%clk 0:02:09.7]} 39... fxg4 {[%clk 0:02:46.8]} 40.
hxg4 {[%clk 0:02:09.6]} 40... hxg4 {[%clk 0:02:44.9]} 0-1

[Event "Live Chess"]
[Site "Chess.com"]
[Date "2023.05.21"]
[Round "-"]
[White "Berdgross"]
[Black "CeladonFish"]
[Result "0-1"]
[WhiteElo "667"]
[BlackElo "1090"]
[TimeControl "300"]
[EndTime "3:47:00 PDT"]
[Termination "CeladonFish won by resignation"]

1. d4 {[%clk 0:04:56.2]} 1... Nf6 {[%clk 0:04:58.5]} 2. e4 {[%clk 0:04:56.1]}
2... Nxe4 {[%clk 0:04:56.8]} 3. Qe2 {[%clk 0:04:54.7]} 3... d5 {[%clk
0:04:53.1]} 4. f3 {[%clk 0:04:48.7]} 4... Nf6 {[%clk 0:04:51.6]} 5. Bg5 {[%clk
0:04:45.9]} 5... e6 {[%clk 0:04:43.5]} 6. Nc3 {[%clk 0:04:42.1]} 6... Bb4 {[%clk
0:04:40]} 7. a3 {[%clk 0:04:38.7]} 7... Bxc3+ {[%clk 0:04:38.1]} 8. bxc3 {[%clk
0:04:37.9]} 8... c6 {[%clk 0:04:33.8]} 9. Nh3 {[%clk 0:04:32.8]} 9... h6 {[%clk
0:04:32]} 10. Bxf6 {[%clk 0:04:31.6]} 10... Qxf6 {[%clk 0:04:30.4]} 11. c4
{[%clk 0:04:23.5]} 11... Qh4+ {[%clk 0:04:27.4]} 12. g3 {[%clk 0:04:18.9]} 12...
Qxd4 {[%clk 0:04:25.8]} 13. cxd5 {[%clk 0:04:10.8]} 13... Qxa1+ {[%clk
0:04:24.1]} 14. Kf2 {[%clk 0:04:05.2]} 14... Qd4+ {[%clk 0:04:19.8]} 15. Kg2
{[%clk 0:04:02.2]} 15... cxd5 {[%clk 0:04:13.9]} 16. Nf4 {[%clk 0:03:58.3]}
16... e5 {[%clk 0:04:07]} 17. Nd3 {[%clk 0:03:53.9]} 17... Nc6 {[%clk
0:03:58.5]} 18. f4 {[%clk 0:03:42.1]} 18... Qe4+ {[%clk 0:03:48.8]} 19. Qxe4
{[%clk 0:03:39]} 19... dxe4 {[%clk 0:03:48.4]} 20. Nxe5 {[%clk 0:03:37.9]} 20...
Nxe5 {[%clk 0:03:47.5]} 21. fxe5 {[%clk 0:03:37.2]} 21... Bf5 {[%clk 0:03:46.1]}
22. Bb5+ {[%clk 0:03:34]} 22... Ke7 {[%clk 0:03:43.6]} 23. Rd1 {[%clk
0:03:31.8]} 23... Ke6 {[%clk 0:03:40.5]} 24. Bc4+ {[%clk 0:03:28.4]} 24... Kxe5
{[%clk 0:03:39.5]} 25. Bxf7 {[%clk 0:03:27.1]} 25... Rhf8 {[%clk 0:03:33.9]} 26.
Bd5 {[%clk 0:03:22.9]} 26... Rad8 {[%clk 0:03:30.8]} 0-1

[Event "Live Chess"]
[Site "Chess.com"]
[Date "2023.05.21"]
[Round "-"]
[White "Reggie016"]
[Black "Vitalii18a"]
[Result "0-1"]
[WhiteElo "1101"]
[BlackElo "1123"]
[TimeControl "300"]
[EndTime "3:47:05 PDT"]
[Termination "Vitalii18a won by resignation"]

1. e4 {[%clk 0:04:59.2]} 1... e5 {[%clk 0:04:58.3]} 2. Nc3 {[%clk 0:04:57.4]}
2... d6 {[%clk 0:04:56.5]} 3. f4 {[%clk 0:04:56.7]} 3... exf4 {[%clk 0:04:54.7]}
4. Nf3 {[%clk 0:04:56.4]} 4... Be7 {[%clk 0:04:52.4]} 5. d4 {[%clk 0:04:54.9]}
5... Bh4+ {[%clk 0:04:50.7]} 6. Ke2 {[%clk 0:04:53]} 6... Bg5 {[%clk 0:04:23.7]}
7. e5 {[%clk 0:04:33.8]} 7... Bg4 {[%clk 0:04:17.4]} 8. h3 {[%clk 0:04:25.4]}
8... Bxf3+ {[%clk 0:04:01.1]} 9. gxf3 {[%clk 0:04:20.4]} 9... dxe5 {[%clk
0:03:58.4]} 10. Ne4 {[%clk 0:04:10.1]} 10... exd4 {[%clk 0:03:49.1]} 11. Rg1
{[%clk 0:04:04]} 11... Bh6 {[%clk 0:03:44]} 12. c3 {[%clk 0:03:47.6]} 12... Nf6
{[%clk 0:03:26.1]} 13. Qa4+ {[%clk 0:03:45.8]} 13... Nc6 {[%clk 0:03:22.4]} 14.
Qc4 {[%clk 0:03:37.2]} 14... Qe7 {[%clk 0:03:08.9]} 15. Kd3 {[%clk 0:03:32.2]}
15... O-O-O {[%clk 0:03:00.4]} 16. h4 {[%clk 0:03:26.2]} 16... Nxe4 {[%clk
0:02:53.5]} 17. Bh3+ {[%clk 0:03:23.1]} 17... Kb8 {[%clk 0:02:51.1]} 18. fxe4
{[%clk 0:03:22.2]} 18... dxc3+ {[%clk 0:02:49.4]} 19. Kxc3 {[%clk 0:03:21.4]}
19... f3 {[%clk 0:02:36.6]} 20. Rf1 {[%clk 0:03:18.1]} 20... Ne5 {[%clk
0:02:33.9]} 0-1

[Event "Live Chess"]
[Site "Chess.com"]
[Date "2023.05.21"]
[Round "-"]
[White "Crowded_House"]
[Black "bedsdrout"]
[Result "1-0"]
[WhiteElo "1638"]
[BlackElo "571"]
[TimeControl "300"]
[EndTime "3:47:13 PDT"]
[Termination "Crowded_House won on time"]

1. d4 {[%clk 0:04:52]} 1... e5 {[%clk 0:04:53.8]} 2. dxe5 {[%clk 0:04:49.8]}
2... Nc6 {[%clk 0:04:46.8]} 3. Nf3 {[%clk 0:04:45.6]} 3... Qe7 {[%clk
0:04:42.2]} 4. c3 {[%clk 0:04:41.6]} 4... Qe6 {[%clk 0:04:27.7]} 5. Bf4 {[%clk
0:04:26.5]} 5... Nd4 {[%clk 0:04:08.3]} 6. Nxd4 {[%clk 0:04:22.1]} 6... Qa6
{[%clk 0:04:03.3]} 7. e3 {[%clk 0:04:16.9]} 7... Qa5 {[%clk 0:03:53.7]} 8. Nd2
{[%clk 0:04:08.6]} 8... d5 {[%clk 0:03:47.3]} 9. exd6 {[%clk 0:04:01.7]} 9...
cxd6 {[%clk 0:03:39.6]} 10. N2b3 {[%clk 0:03:59.1]} 10... Qd5 {[%clk 0:03:26.8]}
11. Nf3 {[%clk 0:03:50.8]} 11... Nf6 {[%clk 0:03:17.7]} 12. Qxd5 {[%clk
0:03:46.9]} 12... Nxd5 {[%clk 0:03:14.3]} 13. Bg3 {[%clk 0:03:46.2]} 13... Bd7
{[%clk 0:02:56.7]} 14. Bc4 {[%clk 0:03:37.2]} 14... Bc6 {[%clk 0:02:03.4]} 15.
Bxd5 {[%clk 0:03:34.5]} 15... Bxd5 {[%clk 0:01:59.3]} 16. Nbd2 {[%clk
0:03:31.9]} 16... Bc6 {[%clk 0:01:51.2]} 17. O-O {[%clk 0:03:30]} 17... d5
{[%clk 0:01:42.4]} 18. Nd4 {[%clk 0:03:26.5]} 18... Rc8 {[%clk 0:01:24.6]} 19.
Nxc6 {[%clk 0:03:24.3]} 19... bxc6 {[%clk 0:01:21.9]} 20. Nf3 {[%clk 0:03:12.9]}
20... Bc5 {[%clk 0:01:16.2]} 21. Rad1 {[%clk 0:03:05.4]} 21... O-O {[%clk
0:00:12.9]} 22. Be5 {[%clk 0:03:02.4]} 22... Rfe8 {[%clk 0:00:09.2]} 23. Bd4
{[%clk 0:03:01.5]} 23... a6 {[%clk 0:00:05.6]} 24. Bxc5 {[%clk 0:03:00.1]} 24...
a5 {[%clk 0:00:04.7]} 25. Rfe1 {[%clk 0:02:45.3]} 1-0

[Event "Live Chess"]
[Site "Chess.com"]
[Date "2023.05.21"]
[Round "-"]
[White "chessfiction"]
[Black "smoggyrabbit"]
[Result "1-0"]
[WhiteElo "2321"]
[BlackElo "1704"]
[TimeControl "300"]
[EndTime "3:47:14 PDT"]
[Termination "chessfiction won on time"]

1. e4 {[%clk 0:04:58.2]} 1... e6 {[%clk 0:04:59.1]} 2. d4 {[%clk 0:04:57.4]}
2... d5 {[%clk 0:04:58.1]} 3. Nc3 {[%clk 0:04:57.1]} 3... Nf6 {[%clk 0:04:55.8]}
4. e5 {[%clk 0:04:55.5]} 4... Nfd7 {[%clk 0:04:54.9]} 5. Nce2 {[%clk 0:04:55.4]}
5... c5 {[%clk 0:04:53.8]} 6. c3 {[%clk 0:04:55.1]} 6... Nc6 {[%clk 0:04:53]} 7.
f4 {[%clk 0:04:54.3]} 7... Be7 {[%clk 0:04:51.4]} 8. Nf3 {[%clk 0:04:53.5]} 8...
O-O {[%clk 0:04:49.7]} 9. h4 {[%clk 0:04:52.3]} 9... b6 {[%clk 0:04:47.8]} 10.
g3 {[%clk 0:04:51.5]} 10... Bb7 {[%clk 0:04:41.1]} 11. Bh3 {[%clk 0:04:50.2]}
11... cxd4 {[%clk 0:04:37.3]} 12. cxd4 {[%clk 0:04:49]} 12... Rc8 {[%clk
0:04:06.9]} 13. a3 {[%clk 0:04:46.7]} 13... Na5 {[%clk 0:04:01.5]} 14. b3 {[%clk
0:04:23.9]} 14... Ba6 {[%clk 0:03:54.2]} 15. Bd2 {[%clk 0:04:13.5]} 15... Bxe2
{[%clk 0:03:51.6]} 16. Kxe2 {[%clk 0:04:08.2]} 16... Rc7 {[%clk 0:02:54.5]} 17.
Bxa5 {[%clk 0:04:06]} 17... bxa5 {[%clk 0:02:53.1]} 18. Qd3 {[%clk 0:04:04.6]}
18... Qc8 {[%clk 0:02:41.5]} 19. Ng5 {[%clk 0:04:00.8]} 19... Bxg5 {[%clk
0:02:38.7]} 20. hxg5 {[%clk 0:03:59.3]} 20... Rc3 {[%clk 0:02:36.1]} 21. Qb1
{[%clk 0:03:23.1]} 21... Qa6+ {[%clk 0:02:31.6]} 22. Kd2 {[%clk 0:03:15.2]}
22... Rfc8 {[%clk 0:02:27.2]} 23. Bf1 {[%clk 0:03:01.2]} 23... Rc2+ {[%clk
0:01:55.2]} 24. Qxc2 {[%clk 0:02:54]} 24... Rxc2+ {[%clk 0:01:55.1]} 25. Kxc2
{[%clk 0:02:53.6]} 25... Qb6 {[%clk 0:01:44]} 26. Rd1 {[%clk 0:02:51.5]} 26...
a4 {[%clk 0:01:38.3]} 27. b4 {[%clk 0:02:47.8]} 27... Qc6+ {[%clk 0:01:34.2]}
28. Kb2 {[%clk 0:02:45.5]} 28... Nb6 {[%clk 0:01:27.6]} 29. Rc1 {[%clk
0:02:43.5]} 29... Nc4+ {[%clk 0:01:25.3]} 30. Ka2 {[%clk 0:02:42.5]} 30... Qb7
{[%clk 0:01:01.9]} 31. Bd3 {[%clk 0:02:36.8]} 31... g6 {[%clk 0:00:59.2]} 32.
Rh2 {[%clk 0:02:22.3]} 32... a5 {[%clk 0:00:53.9]} 33. Bxc4 {[%clk 0:02:17.4]}
33... dxc4 {[%clk 0:00:47.9]} 34. Rxc4 {[%clk 0:02:17.3]} 34... Qf3 {[%clk
0:00:35.4]} 35. Rb2 {[%clk 0:02:06]} 35... axb4 {[%clk 0:00:26.6]} 36. Rcxb4
{[%clk 0:02:01.2]} 36... Qxg3 {[%clk 0:00:24.5]} 37. Rxa4 {[%clk 0:01:55]} 37...
Qxf4 {[%clk 0:00:21.2]} 38. Rab4 {[%clk 0:01:54.2]} 38... Qxg5 {[%clk
0:00:19.5]} 39. a4 {[%clk 0:01:53.8]} 39... Qe3 {[%clk 0:00:16.6]} 40. a5 {[%clk
0:01:53.1]} 40... Qe4 {[%clk 0:00:15.8]} 41. Ka3 {[%clk 0:01:47.5]} 41... Qf3+
{[%clk 0:00:14.1]} 42. Ka4 {[%clk 0:01:43.2]} 42... Qc6+ {[%clk 0:00:11.4]} 43.
Kb3 {[%clk 0:01:40.8]} 43... Qf3+ {[%clk 0:00:10.2]} 44. Ka2 {[%clk 0:01:37]}
44... Qd5+ {[%clk 0:00:08.4]} 45. R2b3 {[%clk 0:01:36.3]} 45... Qg2+ {[%clk
0:00:07.1]} 46. Ka3 {[%clk 0:01:34.8]} 46... Qh1 {[%clk 0:00:06.1]} 47. Rb8+
{[%clk 0:01:34.6]} 47... Kg7 {[%clk 0:00:05]} 48. Rb1 {[%clk 0:01:32.4]} 48...
Qf3+ {[%clk 0:00:03.7]} 49. R8b3 {[%clk 0:01:31.8]} 49... Qd5 {[%clk 0:00:02.7]}
50. Rb5 {[%clk 0:01:30.2]} 50... Qxd4 {[%clk 0:00:02]} 51. R1b3 {[%clk
0:01:29.1]} 51... Qe4 {[%clk 0:00:00.4]} 52. Rb2 {[%clk 0:01:26.4]} 1-0